bitfinex-derivatives/quotes_SOLF0:USTF0_20260126
["timestamp","ask_amount","ask_price","bid_price","bid_amount"]
[1769440887065,6.04668004,124.54,124.45,67.65328812]
[1769440887970,118.57138004,124.54,124.45,67.65328812]
[1769440888169,112.5406,124.52,124.42,74.89348812]
[1769440888370,112.5406,124.52,124.42,67.65328812]
[1769440888371,118.59738004,124.51,124.42,67.65328812]
[1769440888665,7.2365,124.49,124.42,67.65328812]
[1769440888873,6.04668004,124.52,124.42,67.65328812]
[1769440889373,6.04668004,124.52,124.44,67.65328812]
[1769440889969,6.04668004,124.52,124.45,74.89168812]
[1769440890567,6.04668004,124.52,124.45,67.65328812]
[1769440890770,118.58868004,124.52,124.41,67.65328812]
[1769440891272,7.2359,124.5,124.41,74.89378812]
[1769440891472,7.2359,124.5,124.41,67.65328812]
[1769440892778,7.2359,124.5,124.41,74.89378812]
[1769440893370,7.2359,124.5,124.42,74.89358812]
[1769440894574,439.42758004,124.52,124.42,67.65328812]
[1769440894575,6.04668004,124.49,124.42,67.65328812]
[1769440895575,7.2376,124.47,124.42,67.65328812]
[1769440897579,7.2381,124.46,124.42,67.65328812]
[1769440899378,7.2381,124.46,124.39,74.89538812]
[1769440899574,320.82,124.46,124.39,67.65328812]
[1769440900079,7.241,124.41,124.35,67.65328812]
[1769440901086,7.2405,124.42,124.35,67.65328812]
[1769440901980,7.2405,124.42,124.35,74.89758812]
[1769440903981,320.86,124.46,124.36,67.65328812]
[1769440905082,7.239,124.45,124.38,74.89588812]
[1769440905772,433.4572,124.46,124.38,67.65328812]
[1769440905978,6.04668004,124.44,124.35,67.65328812]
[1769440906281,7.2404,124.42,124.35,74.89778812]
[1769440906482,320.86,124.45,124.35,67.65328812]
[1769440906676,6.04668004,124.46,124.36,67.65328812]
[1769440906981,7.2387,124.45,124.39,7.2421]
[1769440907375,7.2387,124.45,124.39,74.89538812]
[1769440909279,7.2387,124.45,124.39,67.65328812]
[1769440909584,7.2394,124.44,124.39,67.65328812]
[1769440909784,7.2394,124.44,124.36,67.65328812]
[1769440910080,7.2394,124.44,124.37,7.2433]
[1769440910284,7.2399,124.43,124.37,7.2433]
[1769440910477,7.2399,124.43,124.37,74.89658812]
[1769440911183,7.2399,124.43,124.37,67.65328812]
[1769440911884,7.2405,124.42,124.37,67.65328812]
[1769440912284,7.2405,124.42,124.35,74.89718812]
[1769440912486,7.2411,124.41,124.35,74.89718812]
[1769440912787,6.04668004,124.41,124.35,67.65328812]
[1769440912987,7.2417,124.4,124.35,67.65328812]
[1769440913387,320.88,124.4,124.32,67.65328812]
[1769440913688,7.2427,124.38,124.32,67.65328812]
[1769440913988,320.88,124.4,124.32,74.89908812]
[1769440914177,7.2422,124.39,124.32,67.65328812]
[1769440915685,7.2427,124.38,124.32,67.65328812]
[1769440916984,7.2427,124.38,124.32,74.89928812]
[1769440917884,328.1421,124.4,124.32,74.89928812]
[1769440918080,320.9,124.4,124.32,74.89928812]
[1769440919191,7.2422,124.39,124.32,74.89928812]
[1769440920191,320.96,124.39,124.34,67.65328812]
[1769440920893,320.96,124.39,124.32,7.2457]
[1769440921092,320.96,124.39,124.32,74.89898812]
[1769440921289,6.05310795,124.41,124.32,74.89898812]
[1769440921484,320.96,124.4,124.32,67.65328812]
[1769440922088,6.05310795,124.43,124.34,67.65328812]
[1769440922388,253.32671188,124.41,124.35,67.65328812]
[1769440922584,320.98,124.44,124.35,67.65328812]
[1769440922986,23.16382177,124.43,124.36,43.25427807]
[1769440923190,23.16382177,124.41,124.33,43.25427807]
[1769440923595,7.2422,124.39,124.33,50.49967807]
[1769440923800,320.98,124.39,124.33,43.25427807]
[1769440924000,344.41071541,124.39,124.29,43.25427807]
[1769440924997,7.2434,124.37,124.31,50.50107807]
[1769440925199,344.41071541,124.39,124.31,43.25427807]
[1769440925896,7.243,124.38,124.31,43.25427807]
[1769440926394,328.223,124.38,124.31,43.25427807]
[1769440926600,7.2433,124.37,124.31,43.25427807]
[1769440928907,328.2428,124.38,124.31,50.50097807]
[1769440930700,328.2628,124.38,124.31,50.50097807]
[1769440931307,7.2433,124.37,124.31,50.50097807]
[1769440931714,25.46150856,124.37,124.29,7.2474]
[1769440931912,31.51461651,124.37,124.28,43.25427807]
[1769440932114,25.46150856,124.34,124.25,43.25427807]
[1769440932423,6.05310795,124.31,124.22,7.2517]
[1769440932721,321.02,124.3,124.22,43.25427807]
[1769440933222,321.02,124.3,124.22,50.50607807]
[1769440933223,328.2675,124.3,124.22,50.50607807]
[1769440933414,321.02,124.3,124.22,50.50607807]
[1769440935221,321.06,124.29,124.23,43.25427807]
[1769440935415,321.06,124.3,124.23,43.25427807]
[1769440935615,347.46894436,124.3,124.23,43.25427807]
[1769440936011,6.05310795,124.31,124.23,43.25427807]
[1769440936212,230.56,124.31,124.24,43.25427807]
[1769440936822,257.19887294,124.31,124.24,43.25427807]
[1769440937219,7.2466,124.31,124.24,50.50447807]
[1769440937431,26.63887294,124.31,124.24,43.25427807]
[1769440937726,32.69198089,124.31,124.24,43.25427807]
[1769440937928,7.2472,124.3,124.24,43.25427807]
[1769440938428,27.17410995,124.29,124.21,52.15896574]
[1769440938924,321.12,124.29,124.22,45.79152794]
[1769440939121,321.12,124.29,124.23,53.04212794]
[1769440939315,321.12,124.29,124.23,45.79152794]
[1769440939516,27.62041406,124.32,124.23,45.79152794]
[1769440939722,33.88945112,124.33,124.23,45.79152794]
[1769440939916,284.58,124.32,124.23,45.79152794]
[1769440940122,27.83634317,124.33,124.23,45.79152794]
[1769440940320,6.05310795,124.35,124.26,45.79152794]
[1769440940518,321.14,124.34,124.26,45.79152794]
[1769440941628,27.83634317,124.36,124.26,45.79152794]
[1769440941822,335.05634317,124.36,124.26,45.79152794]
[1769440942120,7.2438,124.35,124.28,7.2477]
[1769440942326,7.2438,124.35,124.28,53.03922794]
[1769440943326,28.46905729,124.35,124.25,45.79152794]
[1769440943727,34.52216524,124.35,124.25,45.79152794]
[1769440943926,321.16,124.34,124.25,45.79152794]
[1769440944131,28.67513842,124.33,124.25,45.79152794]
[1769440944427,34.72824637,124.32,124.25,45.79152794]
[1769440944823,7.2468,124.3,124.22,53.04252794]
[1769440945326,7.2468,124.3,124.23,53.04222794]
[1769440946426,328.4066,124.31,124.23,53.04222794]
[1769440946933,7.2466,124.31,124.24,53.04162794]
[1769440947432,7.2454,124.33,124.25,45.79152794]
[1769440947631,273.87362614,124.35,124.25,45.79152794]
[1769440947933,7.2444,124.34,124.27,7.2483]
[1769440948124,273.87362614,124.35,124.25,45.79152794]
[1769440948932,7.2455,124.32,124.25,45.79152794]
[1769440949120,35.72557343,124.32,124.25,45.79152794]
[1769440949630,148.43717343,124.32,124.22,45.79152794]
[1769440949824,29.86504964,124.31,124.22,45.79152794]
[1769440950536,29.86504964,124.31,124.23,53.04222794]
[1769440952027,7.2467,124.3,124.23,53.04222794]
[1769440952226,30.24367841,124.3,124.23,45.79152794]
[1769440952423,7.2478,124.28,124.23,45.79152794]
[1769440953534,7.2486,124.27,124.2,45.79152794]
[1769440953928,7.249,124.26,124.2,45.79152794]
[1769440954831,7.249,124.26,124.2,53.04392794]
[1769440955137,30.6139946,124.28,124.2,53.04392794]
[1769440955630,30.6139946,124.28,124.21,7.2516]
[1769440956330,7.2486,124.27,124.2,45.79152794]
[1769440956531,30.6139946,124.28,124.2,45.79152794]
[1769440957034,30.6139946,124.28,124.21,7.2518]
[1769440957727,7.2478,124.29,124.23,45.79152794]
[1769440957926,7.2466,124.31,124.23,45.79152794]
[1769440958325,328.4866,124.31,124.24,53.04142794]
[1769440960234,7.2467,124.3,124.24,45.79152794]
[1769440962431,7.2473,124.29,124.24,45.79152794]
[1769440962925,321.24,124.31,124.24,45.79152794]
[1769440964136,7.2468,124.3,124.24,45.79152794]
[1769440965944,32.64192537,124.29,124.21,45.79152794]
[1769440966839,354.03463924,124.31,124.23,45.79152794]
[1769440968033,7.2473,124.29,124.23,45.79152794]
[1769440968242,321.26,124.32,124.23,45.79152794]
[1769440969041,321.26,124.32,124.25,52.56245459]
[1769440970037,328.5055,124.32,124.25,52.56245459]
[1769440970935,33.36539305,124.36,124.27,45.31295459]
[1769440971140,321.26,124.37,124.29,45.31295459]
[1769440971541,321.26,124.37,124.32,52.55845459]
[1769440971843,146.11516937,124.42,124.32,52.55845459]
[1769440971844,33.48906937,124.44,124.34,45.31295459]
[1769440972044,321.26,124.44,124.34,45.31295459]
[1769440972838,7.2378,124.46,124.38,45.31295459]
[1769440973042,321.24,124.46,124.38,45.31295459]
[1769440973945,7.2386,124.44,124.38,45.31295459]
[1769440974442,467.55651032,124.46,124.38,45.31295459]
[1769440975147,7.2381,124.45,124.38,45.31295459]
[1769440976735,7.2389,124.44,124.38,45.31295459]
[1769440977435,467.55801032,124.46,124.35,52.55625459]
[1769440977436,7.2395,124.43,124.35,52.55625459]
[1769440977641,146.80064612,124.44,124.35,45.31295459]
[1769440978740,41.55470309,124.41,124.32,52.55805459]
[1769440978943,355.41420309,124.41,124.32,52.55805459]
[1769440979643,355.41420309,124.41,124.3,112.7264]
[1769440979644,34.42654384,124.4,124.3,52.55935459]
[1769440980142,34.42654384,124.4,124.31,45.31295459]
[1769440980349,321.08,124.41,124.32,45.31295459]
[1769440981042,321.08,124.41,124.33,52.55765459]
[1769440981443,13.29320795,124.42,124.33,45.31295459]
[1769440981646,355.48654384,124.43,124.36,45.31295459]
[1769440984053,7.2398,124.42,124.36,45.31295459]
[1769440986958,355.48654384,124.43,124.36,52.55595459]
[1769440987854,362.72574384,124.43,124.36,52.55595459]
[1769440988053,41.66574384,124.43,124.36,52.55595459]
[1769440989058,35.38314584,124.4,124.31,52.55895459]
[1769440989260,321.0,124.39,124.31,45.31295459]
[1769440991058,7.2421,124.38,124.31,52.55895459]
[1769440991862,7.2428,124.37,124.31,45.31295459]
[1769440993568,7.2428,124.37,124.31,52.55895459]
[1769440993767,334.28958714,124.39,124.31,45.31295459]
[1769440994064,35.87385678,124.41,124.34,45.31295459]
[1769440994769,7.2409,124.4,124.34,52.55705459]
[1769440996770,35.87385678,124.41,124.35,7.2437]
[1769440997175,49.47114693,124.55,124.44,45.31295459]
[1769440997369,49.47114693,124.54,124.46,52.55005459]
[1769440997567,49.47114693,124.58,124.47,45.31295459]
[1769440998371,49.47114693,124.56,124.48,7.2358]
[1769440998962,49.47114693,124.56,124.49,7.2352]
[1769440999677,49.47114693,124.56,124.47,52.54935459]
[1769441000371,49.47114693,124.56,124.47,157.88125459]
[1769441000770,49.47114693,124.56,124.47,45.31295459]
[1769441000974,49.47114693,124.56,124.48,7.236]
[1769441004976,118.51728714,124.59,124.49,51.20663449]
[1769441004977,56.70813013,124.59,124.49,51.20663449]
[1769441005776,56.70813013,124.59,124.5,7.2348]
[1769441006880,49.47793013,124.59,124.52,7.2338]
[1769441007186,112.4304,124.63,124.52,7.2338]
[1769441007187,49.47793013,124.62,124.54,51.20663449]
[1769441007490,49.47793013,124.62,124.55,7.2318]
[1769441007981,49.47793013,124.62,124.54,51.20663449]
[1769441008685,49.47793013,124.62,124.55,7.2319]
[1769441009983,49.47793013,124.62,124.54,51.20663449]
[1769441010378,56.70613013,124.62,124.52,163.72673449]
[1769441010586,49.47793013,124.61,124.52,58.44003449]
[1769441011989,56.70723013,124.6,124.52,58.44003449]
[1769441014688,49.47793013,124.59,124.5,7.2347]
[1769441015394,56.70843013,124.58,124.5,7.2347]
[1769441015687,49.47793013,124.57,124.49,51.20663449]
[1769441015990,49.47793013,124.56,124.48,51.20663449]
[1769441016792,49.47793013,124.56,124.5,7.2349]
[1769441017688,7.231,124.57,124.5,58.44153449]
[1769441018281,55.52601727,124.58,124.5,58.44153449]
[1769441018482,49.47793013,124.56,124.47,51.20663449]
[1769441018682,55.52601727,124.55,124.47,51.20663449]
[1769441019088,56.71063013,124.54,124.47,58.44333449]
[1769441019483,49.47793013,124.54,124.47,58.44333449]
[1769441020697,49.47793013,124.54,124.48,7.236]
[1769441022592,56.70943013,124.57,124.48,51.20663449]
[1769441022893,49.47793013,124.57,124.49,51.20663449]
[1769441023694,49.47793013,124.57,124.49,7.2354]
[1769441023898,49.47793013,124.57,124.48,51.20663449]
[1769441024398,49.47793013,124.57,124.49,51.20663449]
[1769441025996,49.47793013,124.57,124.51,7.2344]
[1769441027403,376.12601727,124.6,124.52,7.2337]
[1769441027596,376.12601727,124.6,124.51,51.20663449]
[1769441027800,49.47793013,124.6,124.52,51.20663449]
[1769441028303,49.47793013,124.6,124.54,7.2326]
[1769441028489,49.47793013,124.6,124.53,51.20663449]
[1769441028997,373.13809654,124.63,124.54,167.0696926]
[1769441029202,52.55809654,124.63,124.56,54.5606926]
[1769441029905,52.55809654,124.63,124.56,61.7916926]
[1769441030097,52.55809654,124.63,124.53,54.5606926]
[1769441030807,59.78679654,124.61,124.53,61.7934926]
[1769441030991,59.78679654,124.61,124.53,54.5606926]
[1769441032102,59.78679654,124.61,124.54,7.2327]
[1769441034198,7.2295,124.6,124.53,61.7938926]
[1769441034400,7.2295,124.6,124.5,112.5392]
[1769441034401,58.60618368,124.6,124.5,54.5606926]
[1769441034901,58.60618368,124.58,124.5,54.5606926]
[1769441036104,7.231,124.57,124.5,61.7956926]
[1769441036599,52.55809654,124.58,124.5,54.5606926]
[1769441036905,324.03809654,124.61,124.52,54.5606926]
[1769441037096,52.55809654,124.58,124.49,54.5606926]
[1769441037295,324.03809654,124.61,124.51,54.5606926]
[1769441037497,324.03809654,124.61,124.54,7.2324]
[1769441037700,52.55809654,124.61,124.52,54.5606926]
[1769441038807,112.4255,124.64,124.54,54.5606926]
[1769441038808,52.55809654,124.64,124.54,54.5606926]
[1769441039000,58.60618368,124.64,124.54,54.5606926]
[1769441039407,59.78609654,124.63,124.56,7.2314]
[1769441040004,59.78669654,124.62,124.54,54.5606926]
[1769441040508,52.55809654,124.62,124.54,54.5606926]
[1769441040799,52.55809654,124.62,124.56,7.2311]
[1769441041198,59.78619654,124.62,124.54,54.5606926]
[1769441041401,52.55809654,124.62,124.54,54.5606926]
[1769441041599,52.55809654,124.61,124.51,54.5606926]
[1769441041805,52.55809654,124.61,124.46,112.5738]
[1769441041806,52.55809654,124.57,124.49,54.5606926]
[1769441042403,58.58958914,124.57,124.49,54.5606926]
[1769441043202,7.2323,124.55,124.49,61.7962926]
[1769441044603,7.2327,124.54,124.47,7.2364]
[1769441045004,59.79019654,124.55,124.48,61.7965926]
[1769441045207,6.0314926,124.57,124.48,54.5606926]
[1769441045398,52.55809654,124.58,124.49,54.5606926]
[1769441045799,7.2311,124.57,124.51,7.2342]
[1769441046010,6.0314926,124.59,124.51,54.5606926]
[1769441046209,7.2302,124.59,124.53,7.2332]
[1769441046405,52.55809654,124.6,124.51,54.5606926]
[1769441047204,59.78759654,124.6,124.53,7.2333]
[1769441047409,52.55809654,124.6,124.53,7.2333]
[1769441047609,52.55809654,124.6,124.53,54.5606926]
[1769441048215,320.52,124.62,124.55,7.2319]
[1769441048509,320.52,124.62,124.54,54.5606926]
[1769441048709,52.55809654,124.61,124.5,167.1033926]
[1769441048915,52.55809654,124.59,124.5,54.5606926]
[1769441049303,7.231,124.57,124.5,61.7951926]
[1769441049708,52.55809654,124.57,124.47,54.5606926]
[1769441049905,52.55809654,124.56,124.48,7.2361]
[1769441050203,52.55809654,124.56,124.47,54.5606926]
[1769441050711,7.2323,124.55,124.48,7.236]
[1769441052098,52.55809654,124.54,124.46,7.237]
[1769441052301,52.55809654,124.54,124.44,54.5606926]
[1769441052497,52.55809654,124.53,124.44,54.5606926]
[1769441053299,58.58958914,124.52,124.41,167.1811926]
[1769441053609,58.58958914,124.49,124.41,54.5606926]
[1769441054009,373.09809654,124.49,124.41,54.5606926]
[1769441056108,13.2661926,124.51,124.41,54.5606926]
[1769441056313,386.40428914,124.51,124.41,54.5606926]
[1769441056607,65.82428914,124.51,124.41,54.5606926]
[1769441056913,386.40428914,124.51,124.43,7.2389]
[1769441058409,59.79399654,124.49,124.41,54.5606926]
[1769441058916,333.8862926,124.51,124.42,53.55232432]
[1769441059509,13.2662926,124.51,124.42,53.55232432]
[1769441059905,13.2662926,124.51,124.43,7.239]
[1769441060106,61.18273096,124.5,124.42,53.55232432]
[1769441060313,61.18273096,124.5,124.4,112.6327]
[1769441060314,53.94743096,124.5,124.4,53.55232432]
[1769441061511,433.1497,124.52,124.42,53.55232432]
[1769441061512,53.94743096,124.52,124.42,53.55232432]
[1769441061711,374.58743096,124.52,124.44,53.55232432]
[1769441063011,374.58743096,124.52,124.45,7.2375]
[1769441063511,53.94743096,124.51,124.43,7.2388]
[1769441063711,53.94743096,124.51,124.43,60.79112432]
[1769441063906,320.64,124.52,124.41,7.2398]
[1769441063907,61.18313096,124.49,124.41,7.2398]
[1769441064620,7.2363,124.48,124.41,7.2398]
[1769441064804,61.18373096,124.48,124.41,7.2398]
[1769441065407,53.94743096,124.44,124.38,7.2418]
[1769441066320,59.97892356,124.43,124.33,53.55232432]
[1769441066509,112.5946,124.45,124.36,53.55232432]
[1769441066510,59.97892356,124.45,124.36,53.55232432]
[1769441067407,59.97892356,124.48,124.38,166.20412432]
[1769441068009,53.94743096,124.47,124.35,166.23122432]
[1769441068420,53.94743096,124.47,124.36,53.55232432]
[1769441069120,7.2381,124.45,124.37,7.2424]
[1769441069513,61.18553096,124.45,124.37,7.2424]
[1769441069821,53.94743096,124.44,124.35,7.2433]
[1769441070312,53.94743096,124.44,124.36,53.55232432]
[1769441070712,61.18603096,124.44,124.36,53.55232432]
[1769441071310,53.94743096,124.44,124.36,53.55232432]
[1769441072515,53.94743096,124.48,124.38,166.20302432]
[1769441072720,53.94743096,124.48,124.39,53.55232432]
[1769441073718,61.18373096,124.48,124.41,7.2401]
[1769441074017,61.18373096,124.48,124.39,53.55232432]
[1769441074921,61.18373096,124.48,124.4,7.2408]
[1769441075321,61.18373096,124.48,124.4,60.79312432]
[1769441075723,61.18373096,124.48,124.41,7.2401]
[1769441076019,53.94743096,124.48,124.41,7.2401]
[1769441076720,61.18363096,124.48,124.41,7.2401]
[1769441080126,67.21592356,124.47,124.37,166.21242432]
[1769441080326,67.21592356,124.47,124.38,53.55232432]
[1769441080727,61.18493096,124.46,124.4,7.2408]
[1769441082727,61.18543096,124.45,124.38,60.79372432]
[1769441082930,61.18543096,124.45,124.38,7.2414]
[1769441083429,61.18653096,124.43,124.34,166.23712432]
[1769441083727,61.18653096,124.43,124.35,53.55232432]
[1769441084027,53.94743096,124.43,124.35,53.55232432]
[1769441084820,53.94743096,124.42,124.32,166.25292432]
[1769441085131,53.94743096,124.42,124.33,53.55232432]
[1769441085531,7.2403,124.41,124.34,7.2437]
[1769441085718,59.97892356,124.41,124.34,7.2437]
[1769441085927,53.94743096,124.4,124.3,53.55232432]
[1769441086126,53.94743096,124.4,124.32,7.2454]
[1769441086427,53.94743096,124.4,124.3,53.55232432]
[1769441086631,59.97892356,124.38,124.3,7.2461]
[1769441086832,53.94743096,124.38,124.3,7.2461]
[1769441087131,53.94743096,124.38,124.29,166.28672432]
[1769441087330,53.94743096,124.38,124.31,7.2459]
[1769441088133,61.18963096,124.38,124.29,60.79932432]
[1769441088331,53.94743096,124.38,124.3,53.55232432]
[1769441089838,61.18953096,124.38,124.3,53.55232432]
[1769441090029,54.03969738,124.41,124.31,167.99745389]
[1769441090226,54.03969738,124.41,124.32,55.28015389]
[1769441090428,61.28009738,124.41,124.33,7.2447]
[1769441091435,61.28009738,124.41,124.34,7.2441]
[1769441092332,326.9314926,124.42,124.32,7.2451]
[1769441092333,54.03969738,124.4,124.32,7.2451]
[1769441092531,54.03969738,124.4,124.29,112.729]
[1769441092738,112.6327,124.41,124.33,55.28015389]
[1769441092739,54.03969738,124.41,124.33,55.28015389]
[1769441093640,6.0314926,124.44,124.36,55.28015389]
[1769441093641,54.03969738,124.44,124.36,55.28015389]
[1769441093837,60.07118998,124.47,124.38,55.28015389]
[1769441094534,60.07118998,124.47,124.36,55.28015389]
[1769441094730,54.03969738,124.47,124.37,55.28015389]
[1769441095247,61.27709738,124.46,124.37,62.52245389]
[1769441095434,54.03969738,124.46,124.37,62.52245389]
[1769441095838,54.03969738,124.45,124.37,62.52245389]
[1769441096036,60.07118998,124.45,124.35,7.2435]
[1769441096438,60.07118998,124.45,124.34,55.28015389]
[1769441096439,54.03969738,124.45,124.34,167.96485389]
[1769441096640,54.03969738,124.44,124.36,167.94455389]
[1769441096837,54.03969738,124.47,124.38,55.28015389]
[1769441097441,54.03969738,124.47,124.4,7.2407]
[1769441097740,61.27659738,124.47,124.38,55.28015389]
[1769441098842,61.27729738,124.46,124.39,7.2413]
[1769441099740,61.27729738,124.46,124.38,55.28015389]
[1769441100242,54.03969738,124.47,124.38,55.28015389]
[1769441100442,54.03969738,124.47,124.39,7.2414]
[1769441100640,54.03969738,124.47,124.38,55.28015389]
[1769441100838,54.03969738,124.46,124.39,7.2414]
[1769441101034,54.03969738,124.46,124.38,55.28015389]
[1769441101340,54.03969738,124.44,124.35,55.28015389]
[1769441101536,54.03969738,124.42,124.32,55.28015389]
[1769441101735,61.28069738,124.4,124.32,55.28015389]
[1769441102342,61.28139738,124.39,124.29,55.28015389]
[1769441102537,54.03969738,124.39,124.29,55.28015389]
[1769441103134,54.03969738,124.38,124.26,345.82126088]
[1769441103444,380.95118998,124.37,124.27,55.28015389]
[1769441103738,54.03969738,124.36,124.27,55.28015389]
[1769441103940,54.03969738,124.36,124.21,168.08575389]
[1769441103941,54.03969738,124.32,124.21,168.08575389]
[1769441104130,61.28569738,124.32,124.23,7.2505]
[1769441104441,54.03969738,124.32,124.23,7.2505]
[1769441105242,60.09509068,124.35,124.27,62.52825389]
[1769441105438,54.03969738,124.35,124.27,62.52825389]
[1769441105634,320.92,124.37,124.28,168.02465389]
[1769441106037,54.03969738,124.36,124.26,112.7584]
[1769441106234,54.03969738,124.36,124.23,6.0553933]
[1769441106235,54.03969738,124.34,124.23,62.0]
[1769441106438,54.03969738,124.32,124.22,168.07405389]
[1769441106940,54.03969738,124.31,124.22,168.07405389]
[1769441107746,54.03969738,124.31,124.22,175.32495389]
[1769441108246,112.6928,124.34,124.25,7.2493]
[1769441108247,382.26449738,124.34,124.25,7.2493]
[1769441108443,6.0553933,124.29,124.18,168.10965389]
[1769441108638,6.0553933,124.26,124.18,55.28015389]
[1769441108835,54.03969738,124.25,124.15,55.28015389]
[1769441110044,61.28949738,124.25,124.15,62.53515389]
[1769441111355,54.03969738,124.25,124.16,7.2544]
[1769441111642,54.03969738,124.25,124.16,120.1074]
[1769441112644,54.03969738,124.25,124.16,7.2544]
[1769441112941,54.03969738,124.25,124.16,120.1078]
[1769441113148,54.03969738,124.25,124.17,168.12315389]
[1769441113543,54.03969738,124.25,124.17,55.28015389]
[1769441114253,7.2487,124.27,124.18,62.53345389]
[1769441114254,54.03969738,124.27,124.18,62.53345389]
[1769441114952,54.03969738,124.27,124.19,7.2527]
[1769441115153,54.03969738,124.27,124.19,55.28015389]
[1769441115747,61.28839738,124.27,124.18,7.2534]
[1769441115948,54.03969738,124.26,124.16,55.28015389]
[1769441116651,54.03969738,124.24,124.13,432.2573]
[1769441116851,54.03969738,124.24,124.13,487.53745389]
[1769441117052,54.03969738,124.24,124.14,55.28015389]
[1769441118151,61.29029738,124.24,124.14,62.53585389]
[1769441118659,7.2514,124.22,124.14,62.53585389]
[1769441118856,55.82037898,124.23,124.14,62.53585389]
[1769441119053,55.82037898,124.23,124.15,57.77796617]
[1769441120150,55.82037898,124.23,124.16,7.2546]
[1769441120356,63.06967898,124.26,124.16,65.03256617]
[1769441120652,63.07007898,124.25,124.16,65.03256617]
[1769441120856,69.12547228,124.25,124.16,65.03256617]
[1769441121659,63.07007898,124.25,124.16,65.03256617]
[1769441121857,61.87577228,124.24,124.14,7.256]
[1769441122445,61.87577228,124.24,124.14,65.03396617]
[1769441122851,55.82037898,124.23,124.14,7.256]
[1769441123954,63.07217898,124.22,124.14,7.256]
[1769441124459,55.82037898,124.22,124.12,7.2568]
[1769441124654,63.07237898,124.21,124.11,170.66836617]
[1769441124852,63.07237898,124.21,124.12,57.77796617]
[1769441125364,63.07237898,124.21,124.09,263.7153933]
[1769441125365,61.87577228,124.21,124.09,428.35026617]
[1769441125659,55.82037898,124.18,124.09,57.77796617]
[1769441126557,55.82037898,124.18,124.1,170.68456617]
[1769441126753,6.0553933,124.19,124.11,57.77796617]
[1769441127463,61.87577228,124.19,124.09,170.69236617]
[1769441127764,55.82037898,124.19,124.12,7.257]
[1769441128261,55.82037898,124.19,124.12,57.77796617]
[1769441128662,55.82037898,124.19,124.09,170.69236617]
[1769441129770,63.07417898,124.18,124.11,7.2573]
[1769441130061,63.07417898,124.18,124.09,57.77796617]
[1769441130267,55.82037898,124.18,124.09,57.77796617]
[1769441130567,55.82037898,124.18,124.1,170.68116617]
[1769441130767,55.82037898,124.18,124.1,57.77796617]
[1769441130960,55.82037898,124.18,124.08,57.77796617]
[1769441131157,55.82037898,124.18,124.09,57.77796617]
[1769441131369,55.82037898,124.18,124.1,57.77796617]
[1769441131754,55.82037898,124.18,124.08,112.9236]
[1769441131952,55.82037898,124.18,124.08,170.70156617]
[1769441132168,61.87577228,124.18,124.08,57.77796617]
[1769441132660,55.82037898,124.16,124.08,65.03686617]
[1769441132862,61.87577228,124.16,124.08,7.2589]
[1769441133961,63.07597898,124.15,124.08,7.2589]
[1769441134267,55.82037898,124.15,124.09,7.2586]
[1769441135056,63.07757898,124.12,124.03,236.45500751]
[1769441135260,63.07757898,124.12,124.03,57.77796617]
[1769441135663,55.82037898,124.12,124.03,7.2622]
[1769441136170,61.87577228,124.11,124.04,7.2618]
[1769441136461,61.87577228,124.11,124.02,112.978]
[1769441136667,61.87577228,124.11,124.05,7.2612]
[1769441136872,55.82037898,124.11,124.04,170.73976617]
[1769441137471,55.82037898,124.13,124.04,170.73976617]
[1769441137668,55.82037898,124.16,124.07,57.77796617]
[1769441138169,63.07577898,124.15,124.08,7.2592]
[1769441138370,69.13117228,124.15,124.08,7.2592]
[1769441138573,61.87577228,124.15,124.05,112.9512]
[1769441139068,61.87577228,124.15,124.05,170.72916617]
[1769441139269,55.82037898,124.15,124.07,57.77796617]
[1769441139472,61.87577228,124.15,124.04,170.73976617]
[1769441139666,55.82037898,124.15,124.09,7.2588]
[1769441139871,55.82037898,124.15,124.06,170.72006617]
[1769441140372,55.82037898,124.15,124.06,57.77796617]
[1769441140766,63.07577898,124.15,124.09,7.2588]
[1769441141073,55.82037898,124.15,124.06,57.77796617]
[1769441141273,55.82037898,124.13,124.07,7.2596]
[1769441141571,55.82037898,124.13,124.04,170.73976617]
[1769441142369,55.82037898,124.13,124.05,170.73136617]
[1769441142968,55.82037898,124.13,124.08,7.2592]
[1769441143171,55.82037898,124.16,124.08,57.77796617]
[1769441144770,55.82037898,124.16,124.08,170.70156617]
[1769441145168,55.82037898,124.16,124.1,7.2578]
[1769441145477,55.82037898,124.16,124.09,112.9143]
[1769441145670,55.82037898,124.16,124.09,170.69226617]
[1769441146072,377.42037898,124.19,124.09,170.69226617]
[1769441146373,377.42037898,124.19,124.11,57.77796617]
[1769441146672,55.82037898,124.19,124.11,57.77796617]
[1769441147074,55.82037898,124.19,124.13,7.2565]